fUSD/lending_fUSD_20250116
["ID","MTS","AMOUNT","RATE_DAILY","PERIOD"]
[349198046,1737027076788,-966.12,0.00040999,18]
[349198047,1737027076798,-833.43,0.00040999,18]
[349198048,1737027076807,-966.12,0.00040999,18]
[349198049,1737027076816,-833.43,0.00040999,18]
[349198050,1737027076826,-574.47,0.00040999,18]
[349198051,1737027076835,-966.12,0.00040999,18]
[349198052,1737027076846,-833.43,0.00040999,18]
[349198053,1737027076856,-574.47,0.00040999,18]
[349198054,1737027076865,-966.12,0.00040999,18]
[349198055,1737027076875,-500.0,0.00040999,18]
[349198056,1737027076884,-1680.83,0.00040999,18]
[349198057,1737027076894,-833.43,0.00040999,18]
[349198058,1737027076903,-574.47,0.00040999,18]
[349198059,1737027076912,-966.31322666,0.00040999,18]
[349198060,1737027076921,-510.46296011,0.00040999,18]
[349198061,1737027076931,-1680.83,0.00040999,18]
[349198062,1737027076940,-833.43,0.00040999,18]
[349198063,1737027076949,-574.47,0.00040999,18]
[349198064,1737027076960,-1680.83,0.00040999,18]
[349198065,1737027076969,-833.43,0.00040999,18]
[349198066,1737027076978,-574.47,0.00040999,18]
[349198067,1737027076988,-1680.83,0.00040999,18]
[349198068,1737027076997,-833.47,0.00040999,18]
[349198069,1737027077007,-574.47,0.00040999,18]
[349198070,1737027077016,-1680.83,0.00040999,18]
[349198071,1737027077026,-574.47,0.00040999,18]
[349198072,1737027077035,-1680.83,0.00040999,18]
[349198073,1737027077045,-574.47,0.00040999,18]
[349198074,1737027077054,-1680.83,0.00040999,18]
[349198075,1737027077063,-1680.83,0.00040999,18]
[349198076,1737027077071,-574.47,0.00040999,18]
[349198077,1737027077080,-1680.83,0.00040999,18]
[349198078,1737027077090,-574.47,0.00040999,18]
[349198079,1737027077100,-1680.83,0.00040999,18]
[349198080,1737027077110,-574.47,0.00040999,18]
[349198081,1737027077122,-1680.83,0.00040999,18]
[349198082,1737027077139,-574.4968688,0.00040999,18]
[349198083,1737027077159,-1680.84086822,0.00040999,18]
[349198084,1737027077169,-151.0,0.00040999,14]
[349198085,1737027077179,-500.0,0.00040999,18]
[349198086,1737027077191,-151.0,0.00040999,14]
[349198087,1737027077201,-512.26254227,0.00040999,18]
[349198088,1737027077211,-151.0,0.00040999,14]
[349198089,1737027077220,-151.0,0.00040999,14]
[349198090,1737027077231,-151.0,0.00040999,14]
[349198091,1737027077240,-877.69,0.00040999,18]
[349198092,1737027077250,-500.0,0.00040999,18]
[349198093,1737027077261,-877.69,0.00040999,18]
[349198094,1737027077272,-500.0,0.00040999,18]
[349198095,1737027077282,-877.69,0.00040999,18]
[349198096,1737027077291,-508.72098883,0.00040999,18]
[349198097,1737027077301,-877.69,0.00040999,18]
[349198098,1737027077311,-500.0,0.00040999,18]
[349198099,1737027077320,-877.69,0.00040999,18]
[349198100,1737027077330,-510.35411486,0.00040999,18]
[349198101,1737027077340,-877.69,0.00040999,18]
[349198102,1737027077351,-801.92417206,0.00040999,18]
[349198103,1737027077722,-75.76582794,0.00040999,18]
[349198104,1737027077731,-508.77004016,0.00040999,18]
[349198105,1737027077743,-268.072,0.00040999,18]
[349198106,1737027077755,-100.84795984,0.00040999,18]
[349198107,1737027077764,-877.69,0.00040999,18]
[349198108,1737027077773,-877.69,0.00040999,18]
[349198109,1737027077782,-108.8140911,0.00040999,14]
[349198110,1737027077820,-42.1859089,0.00040999,14]
[349198111,1737027077830,-877.69,0.00040999,18]
[349198112,1737027077839,-151.0,0.00040999,14]
[349198113,1737027077850,-877.69,0.00040999,18]
[349198114,1737027077859,-151.0,0.00040999,14]
[349198115,1737027077869,-877.69,0.00040999,18]
[349198116,1737027077878,-151.0,0.00040999,14]
[349198117,1737027077888,-877.69,0.00040999,18]
[349198118,1737027077897,-206.059098,0.00040999,14]
[349198119,1737027077907,-877.69,0.00040999,18]
[349198120,1737027077918,-691.91579297,0.00040999,18]
[349198121,1737027077995,-500.0,0.00040547,18]
[349198122,1737027078004,-352.22895866,0.00040547,18]
[349198123,1737027078015,-147.77104134,0.00040547,18]
[349198124,1737027078026,-500.0,0.00040547,18]
[349198125,1737027078036,-500.0,0.00040547,18]
[349198126,1737027078045,-158.49,0.00040547,18]
[349198127,1737027078056,-519.59,0.00040547,18]
[349198128,1737027078066,-511.49905464,0.00040547,18]
[349198129,1737027078076,-500.0,0.00040798,18]
[349198130,1737027078086,-500.0,0.00040998,18]
[349198131,1737027078096,-185.77420703,0.00040999,18]
[349198132,1737027078106,-877.69,0.00040999,18]
[349198133,1737027078116,-877.69,0.00040999,18]
[349198134,1737027078126,-1691.57,0.00040999,18]
[349198135,1737027078137,-877.75051259,0.00040999,18]
[349198136,1737027078147,-1691.57,0.00040999,18]
[349198137,1737027078156,-1691.57,0.00040999,18]
[349198138,1737027078167,-1691.57,0.00040999,18]
[349198139,1737027078177,-1691.57,0.00040999,18]
[349198140,1737027078188,-1691.57,0.00040999,18]
[349198141,1737027078199,-1691.57,0.00040999,18]
[349198142,1737027078210,-1691.57,0.00040999,18]
[349198143,1737027078219,-1691.57,0.00040999,18]
[349198144,1737027078229,-1691.57,0.00040999,18]
[349198145,1737027078239,-1691.57,0.00040999,18]
[349198146,1737027078249,-500.0,0.00040999,18]
[349198147,1737027078259,-1691.5819102,0.00040999,18]
[349198148,1737027078269,-500.0,0.00040999,18]
[349198149,1737027078278,-500.0,0.00040999,18]
[349198150,1737027078289,-500.0,0.00040999,18]
[349198151,1737027078298,-500.0,0.00040999,18]
[349198152,1737027078308,-514.59794494,0.00040999,18]
[349198153,1737027078318,-517.05218813,0.00040999,18]
[349198154,1737027078328,-1244.17,0.00040999,18]
[349198155,1737027078338,-1244.17,0.00040999,18]
[349198156,1737027078349,-1244.17,0.00040999,18]
[349198157,1737027078359,-1244.17,0.00040999,18]
[349198158,1737027078369,-1244.17,0.00040999,18]
[349198159,1737027078379,-1244.17,0.00040999,18]
[349198160,1737027078388,-1244.17,0.00040999,18]
[349198161,1737027078398,-500.0,0.00040999,18]
[349198162,1737027078408,-1244.17,0.00040999,18]
[349198163,1737027078418,-501.21207969,0.00040999,18]
[349198164,1737027078428,-1244.17,0.00040999,18]
[349198165,1737027078438,-1244.17,0.00040999,18]
[349198166,1737027078447,-1244.17,0.00040999,18]
[349198167,1737027078457,-1244.17,0.00040999,18]
[349198168,1737027078467,-828.58,0.00040999,18]
[349198169,1737027078478,-1244.17,0.00040999,18]
[349198170,1737027078487,-828.58,0.00040999,18]
[349198171,1737027078497,-994.44,0.00040999,18]
[349198172,1737027078507,-1244.17,0.00040999,18]
[349198173,1737027078516,-828.58,0.00040999,18]
[349198174,1737027078526,-994.44,0.00040999,18]
[349198175,1737027078535,-828.58,0.00040999,18]
[349198176,1737027078544,-994.44,0.00040999,18]
[349198177,1737027078554,-1244.17,0.00040999,18]
[349198178,1737027078563,-828.58,0.00040999,18]
[349198179,1737027078575,-994.44,0.00040999,18]
[349198180,1737027078585,-1244.17,0.00040999,18]
[349198181,1737027078596,-828.58,0.00040999,18]
[349198182,1737027078605,-994.44,0.00040999,18]
[349198183,1737027078615,-1244.17,0.00040999,18]
[349198184,1737027078624,-828.58,0.00040999,18]
[349198185,1737027078634,-500.0,0.00040999,18]
[349198186,1737027078644,-994.44,0.00040999,18]
[349198187,1737027078653,-828.58,0.00040999,18]
[349198188,1737027078663,-1244.17,0.00040999,18]
[349198189,1737027078673,-500.0,0.00040999,18]
[349198190,1737027078683,-994.44,0.00040999,18]
[349198191,1737027078691,-1244.40795962,0.00040999,18]
[349198192,1737027078700,-828.58,0.00040999,18]
[349198193,1737027078710,-500.0,0.00040999,18]
[349198194,1737027078719,-994.44,0.00040999,18]
[349198195,1737027078729,-828.58,0.00040999,18]
[349198196,1737027078738,-500.0,0.00040999,18]
[349198197,1737027078747,-994.44,0.00040999,18]
[349198198,1737027078757,-828.58,0.00040999,18]
[349198199,1737027078766,-320.09620971,0.00040999,18]
[349198200,1737027078776,-994.44,0.00040999,18]
[349198201,1737027078785,-828.60259079,0.00040999,18]
[349198202,1737027078798,-994.44,0.00040999,18]
[349198203,1737027078808,-994.44,0.00040999,18]
[349198204,1737027078817,-994.62563987,0.00040999,18]
[349198205,1737027078827,-500.0,0.00040999,18]
[349198206,1737027078836,-2218.87618996,0.00040999,18]
[349198207,1737027078851,-666.30381004,0.00040999,18]
[349198208,1737027078861,-2583.69618996,0.00040999,18]
[349198209,1737027078872,-301.48381004,0.00040999,18]
[349198210,1737027078881,-500.0,0.00040999,18]
[349198211,1737027078891,-91.82428613,0.00040999,18]
[349198212,1737027078902,-408.17571387,0.00040999,18]
[349198213,1737027078911,-935.36435336,0.00040999,18]
[349198214,1737027078923,-253.90758358,0.00040999,18]
[349198215,1737027079096,-415.4368493,0.00040547,18]
[349198216,1737027079106,-500.0,0.00040547,18]
[349198217,1737027079116,-504.90186689,0.00040547,18]
[349198218,1737027079125,-500.0,0.00040547,18]
[349198219,1737027079135,-500.0,0.00040547,18]
[349198220,1737027079143,-1695.90806306,0.00040999,18]
[349198221,1737027079153,-500.0,0.00040999,18]
[349198222,1737027079162,-507.54953968,0.00040999,18]
[349198223,1737027079172,-500.0,0.00040999,18]
[349198224,1737027079181,-2885.18,0.00040999,18]
[349198225,1737027079193,-500.0,0.00040999,18]
[349198226,1737027079203,-500.0,0.00040999,18]
[349198227,1737027079212,-646.69204104,0.00040999,18]
[349198228,1737027079445,-159.65552,0.00040547,18]
[349198229,1737027079455,-500.0,0.00040547,18]
[349198230,1737027079465,-500.0,0.00040547,18]
[349198231,1737027079475,-513.78969429,0.00040547,18]
[349198232,1737027079484,-502.23108249,0.00040547,18]
[349198233,1737027079494,-500.0,0.00040547,18]
[349198234,1737027079503,-232.41,0.00040898,18]
[349198235,1737027079512,-597.563969,0.00040998,14]
[349198236,1737027079522,-597.563969,0.00040998,14]
[349198237,1737027079531,-159.65552,0.00040998,18]
[349198238,1737027079541,-2156.32259136,0.00040999,18]
[349198239,1737027079552,-82.1653676,0.00040999,18]
[349198240,1737027079561,-225.07448864,0.00040999,18]
[349198241,1737027079573,-274.92551136,0.00040999,18]
[349198242,1737027079582,-2885.18,0.00040999,18]
[349198243,1737027079593,-2885.18,0.00040999,18]
[349198244,1737027079602,-521.87628065,0.00040999,18]
[349198245,1737027079614,-2363.30371935,0.00040999,18]
[349198246,1737027079623,-789.76605065,0.00040999,18]
[349198247,1737027079636,-1359.24349334,0.00040999,18]
[349198248,1737027127189,152.54,0.000335,31]
[349198249,1737027127245,99.04209689,0.000359,31]
[349198250,1737027127273,53.49790311,0.000359,31]
[349198251,1737027127313,152.54,0.000359,31]
[349198252,1737027127366,152.54,0.000384,31]
[349198253,1737027127422,131.42209689,0.000384,31]
[349198254,1737027127451,21.11790311,0.000384,31]
[349198256,1737027395106,168.76,0.00023,120]
[349198257,1737027955123,-151.0,0.0003,120]
[349198258,1737027955148,-16.15496422,0.00030802,2]
[349198259,1737027958092,-158.62503578,0.00030802,2]
[349198260,1737027958114,-9.90422802,0.000324,120]
[349198261,1737028047097,-231.09577198,0.000324,120]
[349198262,1737028047123,-152.59,0.000335,31]
[349198263,1737028047144,-151.0,0.00033534,120]
[349198264,1737028047165,-300.0,0.00034,120]
[349198265,1737028047186,-42.33955482,0.00035507,2]
[349198266,1737028051123,-431.78821034,0.00035507,2]
[349198267,1737028054107,-218.43227789,0.00035507,2]
[349198268,1737028146182,-150.0,0.00035507,7]
[349198269,1737028146204,-150.0,0.00035507,7]
[349198270,1737028146224,-150.0,0.00035507,7]
[349198271,1737028146250,-152.59,0.000359,31]
[349198272,1737028146274,-152.59,0.000359,31]
[349198273,1737028146295,-3957.5594836,0.000359,2]
[349198274,1737028146317,-1266.71,0.00035963,2]
[349198275,1737028146338,-400.0,0.00036,120]
[349198276,1737028146360,-150.0,0.00036,7]
[349198277,1737028146381,-150.0,0.00036493,7]
[349198278,1737028146401,-150.0,0.00036822,7]
[349198279,1737028146422,-150.0,0.00036986,7]
[349198280,1737028146443,-151.0,0.00037068,120]
[349198281,1737028146464,-400.0,0.000374,120]
[349198282,1737028146485,-150.0,0.00037479,7]
[349198283,1737028146505,-200.0,0.00037738,2]
[349198284,1737028146525,-389.1,0.0003788,2]
[349198285,1737028146547,-500.0,0.000379,13]
[349198286,1737028146570,-150.0,0.00037973,7]
[349198287,1737028146591,-400.0,0.00037999,2]
[349198288,1737028146612,-1000.0,0.00038,13]
[349198289,1737028146632,-32248.0474415,0.00038,30]
[349198290,1737028152136,-50281.9243095,0.00038,30]
[349198291,1737028152160,-400.0,0.00038,120]
[349198292,1737028152183,-1600.0,0.000381,13]
[349198293,1737028152206,-150.0,0.00038137,7]
[349198294,1737028152230,-500.0,0.000382,31]
[349198295,1737028152253,-2100.0,0.000382,13]
[349198296,1737028152277,-1266.71,0.00038227,2]
[349198297,1737028152302,-2600.0,0.000383,13]
[349198298,1737028152326,-1399.78,0.00038324,120]
[349198299,1737028152352,-152.59,0.000384,31]
[349198300,1737028152378,-152.59,0.000384,31]
[349198301,1737028152401,-500.0,0.000384,14]
[349198302,1737028152423,-150.0,0.00038466,7]
[349198303,1737028152445,-500.0,0.000385,14]
[349198304,1737028152466,-237.0,0.00038547,4]
[349198305,1737028152489,-594.67,0.00038547,2]
[349198306,1737028152511,-1033.4,0.00038569,2]
[349198307,1737028152533,-500.0,0.000386,14]
[349198308,1737028152556,-500.0,0.000387,14]
[349198309,1737028152581,-1000.0,0.00038737,2]
[349198310,1737028152604,-79.36692231,0.000388,14]
[349198317,1737028231607,-1500.0,0.0003873,2]
[349198318,1737028231617,-893.63307769,0.000388,14]
[349198319,1737028231630,-155.435,0.0003895,2]
[349198320,1737028231641,-940.66,0.00038954,2]
[349198321,1737028231651,-150.0,0.00038959,7]
[349198322,1737028231661,-436.0,0.00039071,2]
[349198323,1737028231673,-250.0,0.00039147,2]
[349198324,1737028231685,-250.0,0.00039262,120]
[349198325,1737028231695,-430.3,0.00039289,120]
[349198326,1737028231707,-1198.13,0.00039329,120]
[349198327,1737028231717,-215.59179746,0.00039366,11]
[349198328,1737028231727,-217.34,0.00039396,2]
[349198329,1737028231737,-175.26,0.00039446,120]
[349198330,1737028231747,-222.25559534,0.00039452,7]
[349198331,1737028231757,-150.0,0.00039452,7]
[349198332,1737028231767,-253.41469485,0.00039452,7]
[349198333,1737028231778,-150.5,0.00039456,120]
[349198334,1737028231787,-3156.77240382,0.00039463,14]
[349198335,1737028231804,-1703.65128831,0.00039463,14]
[349198336,1737028231817,-1008.7217319,0.00039463,14]
[349198337,1737028231828,-700.0,0.00039463,14]
[349198338,1737028231856,-856.04257068,0.00039463,14]
[349198339,1737028231868,-8356.96077501,0.00039463,14]
[349198340,1737028231914,-2052.3758564,0.00039463,14]
[349198341,1737028231925,-711.47500005,0.00039463,14]
[349198342,1737028231938,-1198.4,0.00039463,14]
[349198343,1737028231949,-929.64434,0.00039463,14]
[349198344,1737028231974,-321.66193489,0.00039463,14]
[349198896,1737028237474,-10048.63607314,0.00039463,14]
[349198906,1737028237550,-653.67901261,0.00039463,14]
[349198909,1737028237564,-3176.98864,0.00039463,14]
[349198913,1737028237601,-47.97646702,0.00039463,14]
[349198917,1737028237626,-641.685354,0.00039463,14]
[349198920,1737028237642,-880.82102011,0.00039463,14]
[349198926,1737028237696,-816.43303494,0.00039463,14]
[349198950,1737028237917,-4987.94296,0.00039463,14]
[349199128,1737028239738,-4178.0,0.0003945,60]
[349199130,1737028239748,-1545.88183834,0.00039463,14]
[349199190,1737028240321,-153728.41465783,0.00039463,14]
[349199192,1737028240332,-38572.52050751,0.00039466,39]
[349199230,1737028240692,-95612.93026536,0.00039466,39]
[349199237,1737028240745,-24.27025315,0.00039466,39]
[349199341,1737028242551,-6027.18622369,0.00039466,39]
[349199342,1737028242564,-2285.61114635,0.00039466,39]
[349199343,1737028242743,-366.73480645,0.00039466,39]
[349199344,1737028242756,-4757.56096716,0.00039466,39]
[349199345,1737028242767,-919.97299999,0.00039466,39]
[349199346,1737028242779,-2402.71204339,0.00039466,39]
[349199347,1737028242790,-13439.9584542,0.00039466,39]
[349199348,1737028242802,-1958.19581366,0.00039466,39]
[349199349,1737028242813,-8016.63865731,0.00039466,39]
[349199350,1737028242832,-806.25288931,0.00039466,39]
[349199362,1737028245658,-504.85517326,0.00039466,39]
[349199368,1737028247817,-2602.99497111,0.00039466,39]
[349199369,1737028247832,-790.06057361,0.00039466,39]
[349199370,1737028247842,-6362.16698,0.00039466,39]
[349199371,1737028247852,-99185.53887055,0.00039466,39]
[349199372,1737028247863,-4954.3,0.00039466,39]
[349199380,1737029133147,-151.0,0.0003,120]
[349199381,1737029133168,-292.09,0.00030415,2]
[349199382,1737029133190,-174.78,0.0003055,2]
[349199383,1737029133211,-180.6993175,0.000318,5]
[349199385,1737029234089,-550.0,0.00027,2]
[349199386,1737029234111,-337.86436491,0.00033242,2]
[349199387,1737029234131,-151.0,0.00033342,120]
[349199388,1737029234151,-325.2292295,0.00035329,2]
[349199389,1737029250097,-198.685404,0.0003523,2]
[349199390,1737029250123,-153.0,0.00035407,2]
[349199391,1737029250145,-39.85523723,0.000355,5]
[349199394,1737029345396,-5378.0,0.000353,5]
[349199395,1737029345420,-683.7770591,0.00035407,2]
[349199396,1737029345444,-150.0,0.00035507,7]
[349199397,1737029345465,-150.0,0.00035507,7]
[349199398,1737029345487,-150.0,0.00035507,7]
[349199399,1737029345507,-150.0,0.00035507,7]
[349199400,1737029345531,-150.0,0.00035789,7]
[349199401,1737029345553,-150.0,0.0003607,7]
[349199402,1737029345575,-150.0,0.0003607,7]
[349199403,1737029345596,-20000.0,0.00036088,5]
[349199404,1737029345623,-1318.76,0.00036112,2]
[349199405,1737029345647,-150.0,0.00036164,7]
[349199406,1737029345668,-150.0,0.00036352,7]
[349199407,1737029345692,-838.43,0.00036352,2]
[349199408,1737029345713,-1323.05,0.00036352,10]
[349199409,1737029345733,-150.0,0.00036634,7]
[349199410,1737029345754,-150.0,0.00036634,7]
[349199411,1737029345774,-151.0,0.00036685,120]
[349199412,1737029345794,-150.0,0.00036822,7]
[349199413,1737029345816,-150.0,0.00036916,7]
[349199414,1737029345837,-150.0,0.00037198,7]
[349199415,1737029345859,-150.0,0.00037198,7]
[349199416,1737029345880,-21019.08,0.00037314,2]
[349199417,1737029345900,-150.0,0.00037479,7]
[349199418,1737029345925,-150.0,0.00037479,7]
[349199419,1737029345947,-958.5,0.00037526,120]
[349199420,1737029345969,-1170.0,0.00037526,2]
[349199421,1737029345989,-403.65,0.00037537,2]
[349199422,1737029346011,-197.02,0.00037619,2]
[349199423,1737029346032,-173.63,0.00037648,2]
[349199424,1737029346055,-19911.0,0.00037725,2]
[349199425,1737029346076,-150.0,0.00037761,7]
[349199426,1737029346098,-150.0,0.00037761,7]
[349199427,1737029346119,-152.03,0.00037984,2]
[349199428,1737029346139,-152.03,0.00037995,2]
[349199429,1737029346159,-152.03,0.00038007,2]
[349199430,1737029346179,-152.03,0.00038019,2]
[349199431,1737029346199,-152.03,0.00038031,2]
[349199432,1737029346221,-152.03,0.00038043,2]
[349199433,1737029346241,-150.0,0.00038043,7]
[349199434,1737029346262,-152.03,0.00038055,2]
[349199435,1737029346282,-152.03,0.00038067,2]
[349199436,1737029346304,-152.03,0.00038078,2]
[349199437,1737029346326,-152.03,0.0003809,2]
[349199438,1737029346347,-152.03,0.00038102,2]
[349199439,1737029346370,-152.03,0.00038114,2]
[349199440,1737029346391,-152.03,0.00038126,2]
[349199441,1737029346412,-809.94,0.00038136,2]
[349199442,1737029346437,-150.0,0.00038137,7]
[349199443,1737029346459,-152.03,0.00038138,2]
[349199444,1737029346480,-152.03,0.0003815,2]
[349199445,1737029346501,-152.03,0.00038161,2]
[349199446,1737029346521,-152.03,0.00038173,2]
[349199447,1737029346542,-514.1,0.00038251,2]
[349199448,1737029346563,-150.0,0.00038325,7]
[349199449,1737029346584,-150.0,0.00038325,7]
[349199450,1737029346606,-6316.36,0.00038347,120]
[349199451,1737029346627,-250.0,0.00038351,2]
[349199452,1737029346651,-1318.76,0.00038376,2]
[349199453,1737029346671,-248.39311306,0.00038398,2]
[349199454,1737029353232,-479.51447836,0.000352,15]
[349199455,1737029364094,-20.48552164,0.000352,15]
[349199456,1737029364115,-1.60688694,0.00038398,2]
[349199457,1737029364135,-250.0,0.00038519,120]
[349199458,1737029364156,-150.0,0.00038607,7]
[349199459,1737029364177,-162.848,0.00038647,52]
[349199460,1737029364198,-1099.58159142,0.00038647,52]
[349199462,1737029369270,-1000.0,0.00038368,2]
[349199463,1737029369292,-302.41518152,0.00038647,52]
[349199464,1737029374202,-28.92922706,0.00038647,52]
[349199465,1737029374224,-1097.49,0.00038736,120]
[349199466,1737029374244,-150.0,0.00038795,7]
[349199467,1737029374264,-150.0,0.00038888,7]
[349199468,1737029374284,-150.0,0.00038888,7]
[349199469,1737029374302,-156.131,0.0003895,2]
[349199470,1737029374321,-113.78937294,0.00039,30]
[349199647,1737029431598,-151.0,0.0003,120]
[349199648,1737029431608,-151.0,0.00033753,120]
[349199649,1737029431618,-21.556683,0.00037507,120]
[349199650,1737029431651,-129.443317,0.00037507,120]
[349199651,1737029431661,-189.52178902,0.000384,2]
[349199652,1737029431761,-38.77821098,0.000384,2]
[349199653,1737029431771,-2024.83881764,0.000389,2]
[349199654,1737029431781,-742.03066,0.0003895,2]
[349199655,1737029431791,-400.0,0.00038999,5]
[349199656,1737029431802,-4572.04062706,0.00039,30]
[349199657,1737029431812,-5000.0,0.00039,35]
[349199658,1737029431822,-171.42689025,0.00039,20]
[349199659,1737029431835,-150.0,0.0003917,7]
[349199660,1737029431844,-6024.14052726,0.00039365,38]
[349199661,1737029431856,-483.04,0.00039365,38]
[349199662,1737029431869,-1119.5,0.00039365,38]
[349199663,1737029431880,-944.375,0.00039365,38]
[349199664,1737029431892,-1185.8,0.00039365,38]
[349199665,1737029431908,-13466.18680784,0.00039365,38]
[349199666,1737029431920,-12164.26407118,0.00039365,38]
[349199667,1737029431931,-474.8206104,0.00039365,38]
[349199668,1737029431948,-4958.3,0.00039365,38]
[349199838,1737029437593,-19725.0,0.00039365,38]
[349199839,1737029437613,-124195.89362148,0.00039365,38]
[349199840,1737029437624,-1547.82302267,0.00039365,31]
[349199841,1737029437634,-826.63433543,0.00039365,120]
[349199842,1737029437644,-62779.5815142,0.00039365,31]
[349199843,1737029437655,-37702.0,0.00039365,31]
[349199844,1737029437672,-1507.9353124,0.00039365,31]
[349199845,1737029437685,-1383.91575475,0.00039365,31]
[349199846,1737029437697,-561.18935367,0.00039365,31]
[349199847,1737029437756,-3002.22458999,0.00039365,31]
[349199857,1737029438060,-1411.77422449,0.00039365,31]
[349199868,1737029439657,-462.12848421,0.00039365,31]
[349199869,1737029439857,-334.81424998,0.00039365,31]
[349199870,1737029439869,-1499.47,0.00039365,31]
[349199871,1737029439963,-768.62622109,0.00039365,31]
[349199872,1737029439975,-60814.58206653,0.00039365,31]
[349199873,1737029440018,-854.227843,0.00039365,31]
[349199874,1737029440073,-403.9861467,0.00039365,31]
[349199875,1737029440084,-43522.66,0.00039365,31]
[349199912,1737029442856,-2000.0,0.00039365,31]
[349199919,1737029442910,-662.42749703,0.00039365,31]
[349199950,1737029445594,-6690.0,0.00039365,31]
[349199951,1737029445606,-982.28757832,0.00039365,31]
[349199952,1737029446282,-3139.09743609,0.00039365,31]
[349199953,1737029446298,-1675.67541731,0.00039365,31]
[349199954,1737029446407,-11984.39844969,0.00039365,31]
[349199959,1737030050528,150.36,0.00010137,2]
[349199960,1737030308512,8167.34,0.00012,2]
[349199961,1737030308537,493045.95197438,0.00012,2]
[349199963,1737030320629,1073.13875602,9e-05,2]
[349199965,1737030343122,-771.44985928,0.000215,2]
[349199967,1737030427107,-33.55014072,0.000215,2]
[349199968,1737030427132,-133.80730096,0.00028999,2]
[349199969,1737030438106,-166.19269904,0.00028999,2]
[349199970,1737030438129,-105.99730045,0.00028999,2]
[349199972,1737030517490,531227.57210508,0.00011,2]
[349199976,1737030525747,6964.5361058,8e-05,2]
[349199981,1737030548102,-194.00269955,0.00028999,2]
[349199982,1737030548124,-300.0,0.00028999,2]
[349199983,1737030548146,-9905.65410167,0.00029,30]
[349199984,1737030548167,-151.0,0.0003,120]
[349199985,1737030548189,-151.0,0.0003,120]
[349199986,1737030548210,-502.21613861,0.0003,2]
[349199987,1737030548231,-420.0,0.00031287,3]
[349199988,1737030548253,-420.0,0.00031287,2]
[349199989,1737030548275,-151.0,0.00033534,120]
[349199990,1737030548301,-151.0,0.00033753,120]
[349199991,1737030548322,-51.64666562,0.00033755,3]
[349199992,1737030553125,-167.35333438,0.00033755,3]
[349199993,1737030553147,-587.0,0.00033755,2]
[349199994,1737030553168,-150.0,0.00035408,7]
[349199995,1737030553189,-150.0,0.00035408,7]
[349199996,1737030553211,-40.68029332,0.00035408,7]
[349199997,1737030555144,-109.31970668,0.00035408,7]
[349199998,1737030555166,-9040.55,0.00035408,2]
[349199999,1737030555187,-6685.42,0.00035408,2]
[349200000,1737030555209,-150.99,0.00035408,2]
[349200001,1737030555231,-499.99,0.00035819,2]
[349200002,1737030555252,-1128.60578903,0.00035819,2]
[349200003,1737030556220,-372.37421097,0.00035819,2]
[349200004,1737030556242,-150.0,0.000359,7]
[349200005,1737030556266,-150.0,0.00036392,7]
[349200006,1737030556292,-150.0,0.00036392,7]
[349200007,1737030556313,-150.0,0.0003672,7]
[349200008,1737030556338,-150.0,0.00036884,7]
[349200009,1737030556360,-151.0,0.00037068,120]
[349200010,1737030556381,-250.0,0.0003717,2]
[349200011,1737030556403,-2000.0,0.00037193,120]
[349200012,1737030556424,-1000.0,0.0003737,2]